[Event "Prague Festival-Futures 2022"]
[Site "Prague"]
[Date "2022.06.13"]
[Round "5.2"]
[White "Warchol, Kamil"]
[Black "Balint, Peter"]
[Result "1/2-1/2"]
[ECO "A46"]
[WhiteElo "2079"]
[BlackElo "2097"]
[Annotator "TA"]
[PlyCount "91"]
[EventDate "2022.06.07"]
[EventType "tourn"]
[EventCountry "CZE"]
[SourceTitle "playchess.com"]
[Source "ChessBase"]
[SourceQuality "1"]
[TimeControl "40/5400+30:1800+30"]

{[%evp 9,91,-9,19,12,24,14,14,14,14,9,27,26,21,2,26,27,32,8,12,0,20,18,27,-21,-13,-15,-14,-62,-47,-52,-42,-43,0,0,0,0,0,0,0,0,0,0,0,0,25,28,35,25,67,84,72,71,72,0,0,0,0,0,0,0,0,0,0,0,0,-3,-3,-3,-3,-3,-3,-3,-3,-3,-3,-4,-4,-5,0,-4,-4,-7,-11,-22]} 1. d4 {[%emt 0:00:30]} Nf6 {[%emt 1:31:00]} 2. Bg5 {[%emt 0:00:00]} e6 {[%emt 0:00:00]} 3. Nf3 {[%emt 0:08:16]} h6 {[%emt 0:00:00]} 4. Bf4 {[%emt 0:09:51]} c5 {[%emt 0:00:00]} 5. e3 {[%emt 0:05:03]} cxd4 {[%emt 0:00:00]} 6. exd4 {[%emt 0:00:37] A46: 1 d4 Nf6 2 Nf3 e6: Torre, London and Colle Systems.} Be7 {[%emt 0:00:00]} 7. Bd3 {[%emt 0:06:13]} b6 {[%emt 0:00:00]} 8. O-O {[%emt 0:05:50]} O-O {[%emt 0:00:00]} 9. Nbd2 {[%emt 0:04:02]} Bb7 {[%emt 0:00:00]} 10. Re1 {[%emt 0:03:08] [#]} d6 $146 {[%emt 0:00:00]} ({Predecessor:} 10... Na6 11. c3 Nc7 12. h3 Ncd5 13. Bh2 Rc8 14. Nc4 d6 15. Ne3 Nxe3 16. Rxe3 Nd5 {1-0 (32) Hirsch,S (2240)-Lagershausen,T Ruhrgebiet 1996}) 11. Qe2 {[%emt 0:03:59]} Re8 {[%emt 0:00:00]} 12. h3 {[%emt 0:02:02]} Qc7 {[%emt 0:00:00]} 13. c4 {[%emt 0:03:28]} Nbd7 {[%emt 0:00:00][%cal Oe6e5]} 14. Rac1 {[%emt 0:02:59][%cal Oc4c5]} Qd8 {[%emt 0:00:00]} 15. Bh2 {[%emt 0:11:40]} Rc8 {[%emt 0:00:00]} 16. b4 {[%emt 0:01:09]} (16. Rcd1 $142) 16... Bf8 {[%emt 0:00:00][%cal Oe6e5]} (16... e5 $5) 17. Qd1 {[%emt 0:01:12]} e5 {[%emt 0:00:00] ...e4 is the strong threat.} 18. Ne4 {[%emt 0:10:10]} ({Of course not} 18. dxe5 dxe5 19. Qc2 Bxb4 $17) (18. Qc2 $11 {should be considered.}) 18... Nxe4 {[%emt 0:00:00]} 19. Bxe4 {[%emt 0:00:02]} Bxe4 {[%emt 0:00:00]} 20. Rxe4 {[%emt 0:00:02]} d5 {[%emt 0:00:00]} (20... Nf6 $5 {[%cal Rf6e4]} 21. Re1 exd4 $11) 21. cxd5 {[%emt 0:02:57][%cal Rd4e5]} Rxc1 {[%emt 0:00:00]} 22. Qxc1 {[%emt 0:00:02][%cal Rd4e5]} f5 {[%emt 0:00:00]} 23. Re2 {[%emt 0:11:54][%cal Rd4e5]} e4 {[%emt 0:00:00]} 24. Ne5 {[%emt 0:00:01]} Nxe5 {[%emt 0:00:00]} 25. Bxe5 {[%emt 0:05:48] [#] And now Qc6 would win.} Qxd5 {[%emt 0:00:00]} 26. Qc3 {[%emt 0:00:35]} Re6 {[%emt 0:00:00]} 27. Rc2 {[%emt 0:00:31]} Re7 {[%emt 0:03:50]} 28. a3 {[%emt 0:00:25]} Rd7 {[%emt 0:00:27]} 29. Qc8 {[%emt 0:00:20]} Qb7 {[%emt 0:02:43]} 30. Qe8 {[%emt 0:00:53] [#] aiming for Rc8. White is more active.} Qd5 {[%emt 0:00:52]} 31. Rc8 {[%emt 0:00:30]} (31. b5 $16) 31... Qf7 $11 {[%emt 0:00:15] The position is equal.} 32. Qxf7+ {[%emt 0:00:54]} Kxf7 {[%emt 0:00:04][%mdl 4096] Endgame KRB-KRB} 33. Rc6 {[%emt 0:00:34]} Be7 {[%emt 0:00:42]} 34. Kf1 {[%emt 0:00:55]} Bf6 {[%emt 0:00:24]} 35. a4 {[%emt 0:00:14]} Bxe5 {[%emt 0:00:27]} 36. dxe5 {[%emt 0:00:01] Hoping for e6+. KR-KR} Re7 {[%emt 0:00:16] Prevents e6+.} 37. f4 {[%emt 0:01:30]} exf3 {[%emt 0:00:06]} 38. gxf3 {[%emt 0:00:00]} Rxe5 {[%emt 0:00:12]} 39. Kf2 {[%emt 0:00:01]} f4 {[%emt 0:03:43]} 40. Rc4 {[%emt 0:00:00]} g5 {[%emt 0:00:00]} 41. Rc6 {[%emt 0:02:46]} Re6 {[%emt 0:00:22]} 42. Rc7+ {[%emt 0:01:48]} Re7 {[%emt 0:00:09]} 43. Rc6 {[%emt 0:00:09]} Kg7 {[%emt 0:02:34]} 44. a5 {[%emt 0:05:48]} bxa5 {[%emt 0:00:17]} 45. bxa5 {[%emt 0:00:01]} h5 {[%emt 0:04:37]} 46. a6 {[%emt 0:05:02] Weighted Error Value: White=0.07 (flawless) /Black=0.06 (flawless)} 1/2-1/2

[Event "Prague Festival-Futures 2022"]
[Site "Prague"]
[Date "2022.06.13"]
[Round "5.3"]
[White "Kuru, Atilla"]
[Black "Tolmacevs, Artjoms"]
[Result "1/2-1/2"]
[ECO "B97"]
[WhiteElo "2023"]
[BlackElo "2087"]
[Annotator "TA"]
[PlyCount "104"]
[EventDate "2022.06.07"]
[EventType "tourn"]
[EventCountry "CZE"]
[SourceTitle "playchess.com"]
[Source "ChessBase"]
[SourceQuality "1"]
[TimeControl "40/5400+30:1800+30"]

{[%evp 18,104,0,0,152,149,168,136,145,39,31,-28,79,91,52,38,26,0,0,0,0,-38,6,7,26,0,32,0,0,0,0,-27,0,-29,-32,-22,-32,-53,-18,-20,-24,-58,-37,-45,-39,-38,-38,-33,-8,-26,-8,-8,0,0,0,0,8,8,8,8,8,8,8,8,8,8,8,8,8,3,8,4,0,0,0,0,0,0,0,0,0,0,0,0,0,0,0,0,0]} 1. e4 {[%emt 0:00:04]} c5 {[%emt 0:00:04]} 2. Nf3 {[%emt 0:00:03]} d6 {[%emt 0:00:05]} 3. d4 {[%emt 0:00:03]} cxd4 {[%emt 0:00:04]} 4. Nxd4 {[%emt 0:00:03]} Nf6 {[%emt 0:00:05]} 5. Nc3 {[%emt 0:00:04]} a6 {[%emt 0:00:03]} 6. Bg5 {[%emt 0:00:05]} e6 {[%emt 0:00:32]} 7. f4 {[%emt 0:00:04]} Qb6 {[%emt 0:00:22]} 8. Qd2 {[%emt 0:00:05]} Qxb2 {[%emt 0:00:25]} 9. Rb1 {[%emt 0:00:03]} Qa3 {[%emt 0:00:56]} 10. f5 $1 {[%emt 0:00:02][%mdl 4] Hoping for fxe6. is more profitable than 10.e5 at the moment.} h6 $2 {[%emt 0:26:41] B97: Sicilian Najdorf: Poisoned Pawn.} (10... Nc6 $11) 11. Bxf6 $16 {[%emt 0:01:06]} gxf6 {[%emt 0:02:17] [#]} 12. fxe6 $1 {[%emt 0:00:02]} fxe6 {[%emt 0:02:11] [#] White is clearly better.} 13. Be2 $146 {[%emt 0:00:18] White is more active.} (13. Bc4 $16) ({Predecessor:} 13. Bc4 Qc5 14. Bxe6 Nc6 15. Nxc6 bxc6 16. Na4 Qa7 17. Bxc8 Rxc8 18. Qc3 Rh7 19. Rb3 {1-0 (49) De Waele,W (1979)-Gounant,S (1840) FICGS email 2011}) 13... Nc6 $14 {[%emt 0:07:52]} 14. Bh5+ {[%emt 0:00:17]} (14. Nxc6 $14 bxc6 15. O-O) 14... Ke7 {[%emt 0:00:43]} (14... Kd8 $11) 15. Nxc6+ $16 {[%emt 0:08:01]} bxc6 {[%emt 0:00:06]} 16. Bf3 {[%emt 0:03:07]} Bg7 {[%emt 0:10:05]} 17. Rb3 {[%emt 0:01:36][%mdl 1024] White has compensation.} Qc5 {[%emt 0:03:53]} 18. Na4 {[%emt 0:00:12][%cal Bc3a4,Ba4b6,Bb6c4][%mdl 32]} Qg5 {[%emt 0:07:03]} 19. Qb4 {[%emt 0:03:29]} Bd7 {[%emt 0:04:20] [#] aiming for ...c5.} 20. Nb6 {[%emt 0:00:22]} Rab8 {[%emt 0:01:58]} 21. Qa3 {[%emt 0:00:01]} a5 {[%emt 0:17:30]} 22. Nc4 {[%emt 0:00:21] Inhibits Qe5. Dancing on a razor blade.} (22. O-O $5 {[%cal Rb3d3]} Rhd8 23. Be2 $11) 22... Qc5 {[%emt 0:00:17]} 23. Qxc5 {[%emt 0:00:25]} dxc5 {[%emt 0:00:04]} 24. Ke2 {[%emt 0:04:28]} a4 {[%emt 0:00:15]} (24... Rb4 $5 {[%cal Rb4c4]} 25. Nb6 Rd8 $15) 25. Rb6 {[%emt 0:00:22]} Rxb6 {[%emt 0:00:30]} 26. Nxb6 {[%emt 0:00:07]} Rb8 {[%emt 0:02:25]} 27. Nxa4 {[%emt 0:00:20]} Rb5 {[%emt 0:00:37]} 28. Rd1 {[%emt 0:01:33]} f5 {[%emt 0:01:01]} 29. Rd2 {[%emt 0:04:06]} c4 {[%emt 0:02:12]} 30. c3 {[%emt 0:01:04]} Be8 {[%emt 0:03:15]} 31. exf5 {[%emt 0:02:13]} exf5 {[%emt 0:00:27]} 32. Kd1 {[%emt 0:00:44]} Ra5 {[%emt 0:04:55]} 33. Re2+ {[%emt 0:00:10]} Kf8 {[%emt 0:00:07]} 34. Nb6 {[%emt 0:01:27] The position is equal.} Bf7 {[%emt 0:01:37]} 35. Bxc6 {[%emt 0:02:56]} Bxc3 {[%emt 0:00:31]} 36. Rc2 {[%emt 0:00:06]} Bd4 {[%emt 0:01:41] This bishop pair is nice.} 37. Nxc4 {[%emt 0:00:28]} Rc5 {[%emt 0:00:32][%csl LRc4,LRc6]} 38. Nd6 {[%emt 0:00:14]} Rxc2 {[%emt 0:01:01]} 39. Kxc2 {[%emt 0:00:06]} Bxa2 {[%emt 0:00:06]} 40. Nxf5 $11 {[%emt 0:00:00][%mdl 4096] Endgame KBB-KBN} Be5 {[%emt 0:00:00]} 41. h3 {[%emt 0:00:07]} Be6 {[%emt 0:01:35]} 42. Nh4 {[%emt 0:02:46] Ng6+ is the strong threat.} Kg7 {[%emt 0:01:54] Inhibits Ng6.} 43. Be4 {[%emt 0:00:11]} Kf6 {[%emt 0:01:31]} 44. Nf3 {[%emt 0:00:10]} Bc4 {[%emt 0:00:59]} 45. g4 {[%emt 0:02:41]} Be2 {[%emt 0:04:28]} 46. Ng1 {[%emt 0:01:11]} Bf1 {[%emt 0:02:07]} 47. Bd3 {[%emt 0:01:31]} Bg2 {[%emt 0:00:30]} 48. Be2 {[%emt 0:01:29]} Bh2 {[%emt 0:00:47]} 49. Bf3 {[%emt 0:00:17]} Bxg1 {[%emt 0:00:11]} 50. Bxg2 {[%emt 0:00:12]} Kg5 {[%emt 0:00:09]} 51. Kd3 {[%emt 0:00:05]} Bf2 {[%emt 0:00:10]} 52. Ke4 {[%emt 0:00:09]} Bh4 {[%emt 0:00:07] Weighted Error Value: White=0.15 (very precise) /Black=0.17 (very precise)} 1/2-1/2

[Event "Prague Festival-Futures 2022"]
[Site "Prague"]
[Date "2022.06.13"]
[Round "5.4"]
[White "Bokhnak, Timofey"]
[Black "Bouska, Jiri"]
[Result "1/2-1/2"]
[ECO "B38"]
[WhiteElo "2060"]
[BlackElo "2117"]
[Annotator "TA"]
[PlyCount "71"]
[EventDate "2022.06.07"]
[EventType "tourn"]
[EventCountry "CZE"]
[SourceTitle "playchess.com"]
[Source "ChessBase"]
[SourceQuality "1"]
[TimeControl "40/5400+30:1800+30"]

{[%evp 22,71,57,33,29,35,35,18,16,21,35,50,39,22,20,31,45,22,31,29,26,28,77,100,93,86,77,79,77,78,78,79,85,79,79,70,95,102,127,127,135,127,144,123,152,114,117,91,131,100,100,111]} 1. e4 {[%emt 0:00:10]} c5 {[%emt 0:00:14]} 2. Nf3 {[%emt 0:01:23]} Nc6 {[%emt 0:00:08]} 3. d4 {[%emt 0:00:11]} cxd4 {[%emt 0:00:06]} 4. Nxd4 {[%emt 0:00:03]} g6 {[%emt 0:00:42]} 5. c4 {[%emt 0:00:22]} Nf6 {[%emt 0:01:38]} 6. Nc3 {[%emt 0:03:07]} Bg7 {[%emt 0:01:41]} 7. Be3 {[%emt 0:01:06]} O-O {[%emt 0:00:15]} 8. Be2 {[%emt 0:02:03]} d6 {[%emt 0:00:12]} 9. h3 {[%emt 0:00:37]} Bd7 {[%emt 0:00:31]} 10. O-O {[%emt 0:05:12]} Nxd4 {[%emt 0:00:18]} 11. Bxd4 {[%emt 0:00:15]} Bc6 {[%emt 0:00:08]} 12. Qd3 {[%emt 0:02:01]} a5 {[%emt 0:00:56] 12...a5 is better than 12...Nd7. B38: Sicilian: Maroczy Bind with 5...Bg7 and 7...0-0.} 13. Rfd1 {[%emt 0:05:24]} Nd7 {[%emt 0:02:51]} 14. Bxg7 {[%emt 0:10:18]} Kxg7 {[%emt 0:00:32] The position is equal.} 15. Qd4+ {[%emt 0:01:23]} Kg8 {[%emt 0:00:29] [#]} 16. Bg4 $146 {[%emt 0:04:25]} ({Predecessor:} 16. Rac1 Qb6 17. Nd5 Bxd5 18. cxd5 Qxd4 19. Rxd4 Nc5 20. Bb5 Kg7 21. Rc2 f5 22. exf5 Rxf5 {1-0 (64) Vorontsov,P (1887)-Brozhik,V (2134) Kiev 2009}) 16... Ne5 {[%emt 0:10:50]} 17. f4 {[%emt 0:00:49]} Nxg4 {[%emt 0:10:06]} 18. hxg4 {[%emt 0:00:02]} e5 {[%emt 0:04:20]} 19. Qxd6 {[%emt 0:02:25]} Qb6+ {[%emt 0:07:59]} 20. c5 {[%emt 0:02:09]} Qxb2 {[%emt 0:00:23]} 21. Qxe5 {[%emt 0:01:47]} Rfe8 {[%emt 0:01:22] [#]} (21... Rad8 $11 {deserves consideration.}) 22. Qd4 $1 $16 {[%emt 0:10:04]} Rad8 {[%emt 0:03:11]} 23. Nd5 {[%emt 0:01:31]} Qxd4+ {[%emt 0:04:23]} 24. Rxd4 {[%emt 0:00:02]} Rxe4 {[%emt 0:07:31]} 25. Nf6+ {[%emt 0:18:08]} Kg7 {[%emt 0:00:13]} 26. Rxe4 {[%emt 0:01:17][%cal Og4g5] Black must now prevent g5! White is more active.} Kxf6 {[%emt 0:00:10][%mdl 4096] Endgame [#] KRR-KRB} 27. Re2 {[%emt 0:00:13]} Rd4 {[%emt 0:01:32]} 28. Rc1 {[%emt 0:02:07]} Kg7 {[%emt 0:06:31]} 29. Rf2 {[%emt 0:00:39]} Bd7 {[%emt 0:20:34]} 30. g5 {[%emt 0:00:09]} h6 {[%emt 0:05:52]} 31. gxh6+ {[%emt 0:00:37]} Kxh6 {[%emt 0:02:14]} 32. Rc3 {[%emt 0:00:30]} Kg7 {[%emt 0:04:41]} 33. Kh2 {[%emt 0:00:10]} Kf6 {[%emt 0:00:43]} 34. Kg3 {[%emt 0:00:11]} Bc6 {[%emt 0:00:20]} 35. Re2 {[%emt 0:00:57]} Kf5 {[%emt 0:02:11]} 36. Re5+ {[%emt 0:02:02] Weighted Error Value: White=0.10 (very precise) /Black=0.09 (flawless)} 1/2-1/2

[Event "Prague Festival-Futures 2022"]
[Site "Prague"]
[Date "2022.06.14"]
[Round "6.1"]
[White "Zelbova, Lada"]
[Black "Warchol, Kamil"]
[Result "0-1"]
[ECO "D02"]
[WhiteElo "1967"]
[BlackElo "2079"]
[Annotator "NA RC"]
[PlyCount "90"]
[EventDate "2022.06.07"]
[EventType "tourn"]
[EventCountry "CZE"]
[SourceTitle "playchess.com"]
[Source "ChessBase"]
[SourceQuality "1"]
[TimeControl "40/5400+30:1800+30"]

1. d4 {[%emt 0:00:03]} Nf6 {[%emt 0:00:05]} 2. Nf3 {[%emt 0:00:09]} d5 {[%emt 0:01:36]} 3. Bf4 {[%emt 0:01:05]} c5 {[%emt 0:04:20]} 4. e3 {[%emt 0:01:49]} Nc6 {[%emt 0:01:09]} 5. Nbd2 {[%emt 0:03:10]} e6 {[%emt 0:07:13]} 6. c3 {[%emt 0:06:06]} Be7 {[%emt 0:23:10]} 7. Bd3 {[%emt 0:05:21]} O-O {[%emt 0:03:37]} 8. Ne5 {[%emt 0:06:09]} Bd6 {[%emt 0:12:39]} 9. Qf3 {[%emt 0:14:41]} Ne8 {[%emt 0:18:45]} 10. Qh3 {[%emt 0:17:15]} f5 {[%emt 0:08:03]} 11. g4 {[%emt 0:03:43]} cxd4 {[%emt 0:03:06]} 12. exd4 {[%emt 0:02:13]} Bxe5 {[%emt 0:02:57]} 13. dxe5 {[%emt 0:09:55]} d4 {[%emt 0:00:44]} 14. gxf5 {[%emt 0:01:27]} dxc3 {[%emt 0:02:21]} 15. bxc3 {[%emt 0:00:39]} Nxe5 {[%emt 0:02:22]} 16. Bxe5 {[%emt 0:01:22]} Qd5 {[%emt 0:00:07]} 17. f4 {[%emt 0:08:03]} Qxh1+ {[%emt 0:01:17]} 18. Ke2 {[%emt 0:00:45]} Qc6 {[%emt 0:01:15]} 19. fxe6 {[%emt 0:03:48]} Bxe6 {[%emt 0:02:16]} 20. Qxh7+ {[%emt 0:08:03]} Kf7 {[%emt 0:00:01]} 21. Rg1 {[%emt 0:00:53]} Rg8 {[%emt 0:00:46]} 22. Ne4 {[%emt 0:01:21]} Rd8 {[%emt 0:01:28]} 23. Ng5+ {[%emt 0:00:51]} Ke7 {[%emt 0:00:55]} 24. Nxe6 {[%emt 0:00:59]} Qxe6 {[%emt 0:00:15]} 25. c4 {[%emt 0:02:12]} b5 {[%emt 0:01:16]} 26. Rg6 {[%emt 0:00:49]} Qd7 {[%emt 0:00:47]} 27. Rg3 {[%emt 0:00:26]} Qe6 {[%emt 0:00:36]} 28. Re3 {[%emt 0:00:27]} Qg4+ {[%emt 0:00:30]} 29. Kd2 {[%emt 0:00:24]} Nf6 {[%emt 0:00:36]} 30. Bd4+ {[%emt 0:00:35]} Kf7 {[%emt 0:00:38]} 31. Bxf6 {[%emt 0:00:36]} Kxf6 {[%emt 0:00:19]} 32. Qe4 {[%emt 0:00:23]} Rge8 {[%emt 0:00:24]} 33. Qc6+ {[%emt 0:00:36]} Re6 {[%emt 0:00:43]} 34. Rxe6+ {[%emt 0:00:25]} Qxe6 {[%emt 0:00:02]} 35. Qxe6+ {[%emt 0:00:28]} Kxe6 {[%emt 0:00:01]} 36. cxb5 {[%emt 0:00:16]} Rh8 {[%emt 0:00:07]} 37. a4 {[%emt 0:00:43]} Rxh2+ {[%emt 0:00:14]} 38. Kc3 {[%emt 0:00:27]} Rh4 {[%emt 0:01:27]} 39. f5+ {[%emt 0:00:29]} Kd5 {[%emt 0:00:17]} 40. a5 {[%emt 0:00:00]} Kc5 {[%emt 0:00:00]} 41. Kd2 {[%emt 0:24:38]} Ra4 {[%emt 0:14:32]} 42. Ke3 {[%emt 0:01:56]} Rxa5 {[%emt 0:05:14]} 43. Kf4 {[%emt 0:04:18]} Ra3 {[%emt 0:01:35]} 44. Be2 {[%emt 0:00:48]} Ra2 {[%emt 0:01:00]} 45. Ke3 {[%emt 0:00:40]} Rxe2+ {[%emt 0:03:42]} 0-1

[Event "Prague Festival-Futures 2022"]
[Site "Prague"]
[Date "2022.06.14"]
[Round "6.2"]
[White "Bouska, Jiri"]
[Black "Kovalskyi, Roman"]
[Result "1-0"]
[ECO "B27"]
[WhiteElo "2117"]
[BlackElo "2039"]
[Annotator "NA RC"]
[PlyCount "89"]
[EventDate "2022.06.07"]
[EventType "tourn"]
[EventCountry "CZE"]
[SourceTitle "playchess.com"]
[Source "ChessBase"]
[SourceQuality "1"]
[TimeControl "40/5400+30:1800+30"]

1. e4 {[%emt 0:00:05]} c5 {[%emt 0:00:05]} 2. Nf3 {[%emt 0:00:10]} g6 {[%emt 0:00:03]} 3. d4 {[%emt 0:00:23]} cxd4 {[%emt 0:00:09]} 4. Qxd4 {[%emt 0:00:09]} Nf6 {[%emt 0:00:03]} 5. Nc3 {[%emt 0:00:21]} Nc6 {[%emt 0:00:13]} 6. Qa4 {[%emt 0:00:05]} d6 {[%emt 0:00:05]} 7. e5 {[%emt 0:00:06]} dxe5 {[%emt 0:00:05]} 8. Nxe5 {[%emt 0:00:04]} Bd7 {[%emt 0:00:04]} 9. Nxd7 {[%emt 0:00:06]} Nxd7 {[%emt 0:00:04]} 10. Bb5 {[%emt 0:00:26]} Bg7 {[%emt 0:00:41]} 11. Be3 {[%emt 0:00:37]} O-O {[%emt 0:02:40]} 12. Rd1 {[%emt 0:02:03]} Qc8 {[%emt 0:03:06]} 13. O-O {[%emt 0:00:24]} Nb6 {[%emt 0:01:40]} 14. Qh4 {[%emt 0:04:56]} Qf5 {[%emt 0:06:21]} 15. Bxc6 {[%emt 0:19:16]} bxc6 {[%emt 0:01:20]} 16. Qxe7 {[%emt 0:07:05]} Qxc2 {[%emt 0:13:53]} 17. Rd2 {[%emt 0:18:53]} Qf5 {[%emt 0:00:26]} 18. Qb4 {[%emt 0:14:46]} Rab8 {[%emt 0:04:11]} 19. Rfd1 {[%emt 0:08:16]} Nd5 {[%emt 0:04:48]} 20. Nxd5 {[%emt 0:00:30]} cxd5 {[%emt 0:01:06]} 21. Qa5 {[%emt 0:07:57]} Rxb2 {[%emt 0:07:16]} 22. Rxd5 {[%emt 0:04:20]} Qc2 {[%emt 0:01:14]} 23. R5d2 {[%emt 0:04:01]} Rb1 {[%emt 0:02:47]} 24. Qd5 {[%emt 0:00:08]} Rxd1+ {[%emt 0:00:05]} 25. Rxd1 {[%emt 0:00:05]} Rb8 {[%emt 0:16:37]} 26. g3 {[%emt 0:02:51]} Rb1 {[%emt 0:01:11]} 27. Qa8+ {[%emt 0:00:51]} Bf8 {[%emt 0:00:08]} 28. Rxb1 {[%emt 0:00:14]} Qxb1+ {[%emt 0:00:06]} 29. Kg2 {[%emt 0:00:02]} Qb4 {[%emt 0:00:54]} 30. Bh6 {[%emt 0:01:42]} Qa3 {[%emt 0:02:16]} 31. h4 {[%emt 0:00:41]} Qd6 {[%emt 0:02:10]} 32. a4 {[%emt 0:00:37]} a5 {[%emt 0:00:57]} 33. Bxf8 {[%emt 0:00:35]} Qxf8 {[%emt 0:00:01]} 34. Qxa5 {[%emt 0:00:10]} Qe8 {[%emt 0:01:40]} 35. Qa7 {[%emt 0:02:25]} Qe4+ {[%emt 0:06:12]} 36. Kh2 {[%emt 0:00:06]} h5 {[%emt 0:00:04]} 37. a5 {[%emt 0:00:23]} g5 {[%emt 0:00:06]} 38. Qe3 {[%emt 0:00:07]} Qc2 {[%emt 0:01:31]} 39. a6 {[%emt 0:00:13]} gxh4 {[%emt 0:00:18]} 40. a7 {[%emt 0:00:00]} Qa4 {[%emt 0:00:00]} 41. Qg5+ {[%emt 0:01:06]} Kh7 {[%emt 0:00:26]} 42. Qxh5+ {[%emt 0:00:05]} Kg7 {[%emt 0:00:03]} 43. Qg5+ {[%emt 0:00:05]} Kh7 {[%emt 0:00:06]} 44. Qxh4+ {[%emt 0:00:04]} Kg8 {[%emt 0:00:04]} 45. Qxa4 {[%emt 0:00:04]} 1-0

[Event "Prague Festival-Futures 2022"]
[Site "Prague"]
[Date "2022.06.14"]
[Round "6.3"]
[White "Kuru, Atilla"]
[Black "Bokhnak, Timofey"]
[Result "1/2-1/2"]
[ECO "C00"]
[WhiteElo "2023"]
[BlackElo "2060"]
[Annotator "NA RC"]
[PlyCount "114"]
[EventDate "2022.06.07"]
[EventType "tourn"]
[EventCountry "CZE"]
[SourceTitle "playchess.com"]
[Source "ChessBase"]
[SourceQuality "1"]
[TimeControl "40/5400+30:1800+30"]

1. e4 {[%emt 0:00:03]} e6 {[%emt 0:00:23]} 2. b3 {[%emt 0:01:34]} d5 {[%emt 0:00:04]} 3. Bb2 {[%emt 0:00:03]} dxe4 {[%emt 0:00:46]} 4. Nc3 {[%emt 0:00:02]} Nf6 {[%emt 0:00:29]} 5. Qe2 {[%emt 0:00:02]} Be7 {[%emt 0:04:16]} 6. O-O-O {[%emt 0:00:12]} b6 {[%emt 0:04:45]} 7. g4 {[%emt 0:00:12]} Ba6 {[%emt 0:05:21]} 8. d3 {[%emt 0:02:02]} Nbd7 {[%emt 0:09:27]} 9. Nxe4 {[%emt 0:01:44]} Nxe4 {[%emt 0:04:39]} 10. Qxe4 {[%emt 0:00:02]} Nc5 {[%emt 0:00:48]} 11. Qe3 {[%emt 0:00:21]} Bb7 {[%emt 0:00:40]} 12. Nf3 {[%emt 0:00:06]} Bf6 {[%emt 0:09:47]} 13. d4 {[%emt 0:00:27]} Nd7 {[%emt 0:02:09]} 14. Bd3 {[%emt 0:04:49]} c6 {[%emt 0:08:30]} 15. g5 {[%emt 0:00:28]} Be7 {[%emt 0:00:03]} 16. h4 {[%emt 0:00:23]} Qc7 {[%emt 0:01:43]} 17. Rhg1 {[%emt 0:04:58]} O-O-O {[%emt 0:02:52]} 18. h5 {[%emt 0:00:33]} Bd6 {[%emt 0:11:42]} 19. Kb1 {[%emt 0:00:26]} Rde8 {[%emt 0:00:06]} 20. Rde1 {[%emt 0:00:58]} Re7 {[%emt 0:02:21]} 21. Rg4 {[%emt 0:02:29]} f6 {[%emt 0:06:11]} 22. h6 {[%emt 0:02:25]} g6 {[%emt 0:02:37]} 23. Bc4 {[%emt 0:15:44]} f5 {[%emt 0:00:14]} 24. Rgg1 {[%emt 0:00:50]} Rhe8 {[%emt 0:00:53]} 25. Ne5 {[%emt 0:07:42]} Nxe5 {[%emt 0:00:18]} 26. dxe5 {[%emt 0:00:06]} Bc5 {[%emt 0:00:02]} 27. Bd4 {[%emt 0:00:18]} Bxd4 {[%emt 0:00:13]} 28. Qxd4 {[%emt 0:00:04]} Rd8 {[%emt 0:00:48]} 29. Qe3 {[%emt 0:00:07]} c5 {[%emt 0:03:16]} 30. Rd1 {[%emt 0:00:13]} Bd5 {[%emt 0:05:47]} 31. Ba6+ {[%emt 0:00:01]} Kb8 {[%emt 0:01:06]} 32. Rd2 {[%emt 0:00:21]} Red7 {[%emt 0:01:06]} 33. Rgd1 {[%emt 0:00:33]} Bc6 {[%emt 0:03:34]} 34. Bc4 {[%emt 0:01:35]} Rxd2 {[%emt 0:01:48]} 35. Rxd2 {[%emt 0:00:02]} Rxd2 {[%emt 0:00:50]} 36. Qxd2 {[%emt 0:00:04]} Qd7 {[%emt 0:00:36]} 37. Qc3 {[%emt 0:02:32]} Be4 {[%emt 0:04:06]} 38. Kb2 {[%emt 0:00:31]} Kb7 {[%emt 0:02:04]} 39. b4 {[%emt 0:00:46]} b5 {[%emt 0:01:33]} 40. Be2 {[%emt 0:00:00]} c4 {[%emt 0:00:00]} 41. a4 {[%emt 0:02:39]} a6 {[%emt 0:01:46]} 42. f4 {[%emt 0:00:09]} Qe7 {[%emt 0:07:05]} 43. a5 {[%emt 0:00:12]} Kb8 {[%emt 0:04:58]} 44. Qd2 {[%emt 0:00:34]} Bd5 {[%emt 0:01:36]} 45. Kc3 {[%emt 0:00:24]} Qa7 {[%emt 0:01:10]} 46. Qd4 {[%emt 0:00:02]} Qxd4+ {[%emt 0:01:11]} 47. Kxd4 {[%emt 0:00:02]} Bc6 {[%emt 0:00:08]} 48. Kc5 {[%emt 0:00:05]} Kc7 {[%emt 0:00:06]} 49. c3 {[%emt 0:00:09]} Bd7 {[%emt 0:05:26]} 50. Bf3 {[%emt 0:00:05]} Be8 {[%emt 0:14:11]} 51. Bb7 {[%emt 0:03:40]} Kxb7 {[%emt 0:00:00]} 52. Kd6 {[%emt 0:00:06]} Kc8 {[%emt 0:00:00]} 53. Kxe6 {[%emt 0:08:42]} Kd8 {[%emt 0:00:00]} 54. Kd6 {[%emt 0:01:50]} Bd7 {[%emt 0:00:00]} 55. Kd5 {[%emt 0:26:14]} Kc7 {[%emt 0:00:00]} 56. e6 {[%emt 0:00:08]} Bc6+ {[%emt 0:00:00]} 57. Ke5 {[%emt 0:00:13]} Be8 {[%emt 0:00:00]} 1/2-1/2